Workbook

Sheet Sheet1
C12: OUTPUT | K12: INPUT
C13: CIE 1931 | D13: XYZ | F13: 转换矩阵 | I13: gamma校正 | J13: 归一化RGB | K13: RGB(16-235)
B14: x | C14: =D14/(D14+D15+D16) -> 0.1500166223 | D14: =F14*I14+G14*I15+H14*I16 -> 0.1805 | F14: 0.4124 | G14: 0.3576 | H14: 0.1805 | I14: =POWER(J14,2.4) -> 0 | J14: =(K14-16)/(235-16) -> 0 | K14: 16 | L14: R
B15: y | C15: =D15/(D14+D15+D16) -> 0.06000664894 | D15: =F15*I14+G15*I15+H15*I16 -> 0.0722 | F15: 0.2126 | G15: 0.7152 | H15: 0.0722 | I15: =POWER(J15,2.4) -> 0 | J15: =(K15-16)/(235-16) -> 0 | K15: 16 | L15: G
C16: =D16/(D14+D15+D16) -> 0.7899767287 | D16: =F16*I14+G16*I15+H16*I16 -> 0.9505 | F16: 0.0193 | G16: 0.1192 | H16: 0.9505 | I16: =POWER(J16,2.4) -> 1 | J16: =(K16-16)/(235-16) -> 1 | K16: 235 | L16: B
C20: =D20/(D20+D21+D22) -> 0.2842064416 | D20: 366.2
C21: =D21/(D20+D21+D22) -> 0.2840512224 | D21: 366
D22: 556.3

Sheet Sheet2
D12: 1023 | E12: 921 | F12: 818 | G12: 716 | H12: 614 | I12: 512 | J12: 409 | K12: 307 | L12: 205 | M12: 102 | N12: 0
D13: 100 | E13: 90 | F13: 80 | G13: 70 | H13: 60 | I13: 50 | J13: 40 | K13: 30 | L13: 20 | M13: 10 | N13: 0
C14: W | D14: 363.5 | E14: 288.8 | F14: 224.3 | G14: 169.4 | H14: 122.5 | I14: 83.65 | J14: 52.17 | K14: 28.31 | L14: 12.01 | M14: 1.561 | N14: 0.0529
D15: 363.8 | E15: 289.9 | F15: 225.9 | G15: 171.2 | H15: 123.9 | I15: 84.66 | J15: 52.81 | K15: 28.76 | L15: 12.23 | M15: 1.581 | N15: 0.043
D16: 554.1 | E16: 434.7 | F16: 335.7 | G16: 251.5 | H16: 180.3 | I16: 122.1 | J16: 75.36 | K16: 40.59 | L16: 16.71 | M16: 2.113 | N16: 0.1397
C17: gamma | E17: =LOG(E14/$D$14,E13/$D$13) -> 2.183407024 | F17: =LOG(F14/$D$14,F13/$D$13) -> 2.163606578 | G17: 2.14065083 | H17: 2.12923592 | I17: 2.119517919 | J17: 2.118619792 | K17: 2.120117821 | L17: 2.11877677 | M17: 2.367101512
E18: =LOG(E15/$D$15,E13/$D$13) -> 2.155154886 | F18: =LOG(F15/$D$15,F13/$D$13) -> 2.135449758 | G18: 2.11332984 | H18: 2.108605026 | I18: 2.103393149 | J18: 2.106213271 | K18: 2.107704364 | L18: 2.108010685 | M18: 2.361930825
E19: =LOG(E16/$D$16,E13/$D$13) -> 2.303415434 | F19: =LOG(F16/$D$16,F13/$D$13) -> 2.245761838 | G19: 2.214627632 | H19: 2.197859687 | I19: 2.182083167 | J19: 2.17733136 | K19: 2.170998743 | L19: 2.175503514 | M19: 2.418688653
C21: R | D21: 132.9 | F21: =D21 -> 132.9 | I21: 1 | J21: 255
D22: 70.74 | F22: =D22 -> 70.74 | I22: 0 | J22: 0
D23: 3.324 | F23: =D23 -> 3.324 | I23: 0 | J23: 0
I25: 0 | J25: 0
C26: G | D26: 135.8 | G26: =D26 -> 135.8 | I26: 1 | J26: 255
D27: 266.1 | G27: =D27 -> 266.1 | I27: 0 | J27: 0
D28: 26.71 | G28: =D28 -> 26.71
C31: B | D31: 94.48 | H31: =D31 -> 94.48 | I31: 0 | J31: 0
D32: 26.72 | H32: =D32 -> 26.72 | I32: 0 | J32: 0
D33: 522.8 | H33: =D33 -> 522.8 | I33: 1 | J33: 255
C35: CIE Yxy | D35: CIE-XYZ | F35: 转换矩阵 | I35: gamma校正 | J35: 归一化RGB | K35: RGB
B36: x | C36: =D36/(D36+D37+D38) -> 0.6421406621 | D36: =F36*I36+G36*I37+H36*I38 -> 132.9 | F36: =F21 -> 132.9 | G36: =G26 -> 135.8 | H36: =H31 -> 94.48 | I36: =POWER(J36,2.4) -> 1 | J36: =K36/255 -> 1 | K36: 255 | L36: R
B37: y | C37: =D37/(D36+D37+D38) -> 0.3417985737 | D37: =F37*I36+G37*I37+H37*I38 -> 70.74 | F37: =F22 -> 70.74 | G37: =G27 -> 266.1 | H37: =H32 -> 26.72 | I37: =POWER(J37,2.4) -> 0 | J37: =K37/255 -> 0 | K37: 0 | L37: G
C38: =D38/(D36+D37+D38) -> 0.01606076419 | D38: =F38*I36+G38*I37+H38*I38 -> 3.324 | F38: =F23 -> 3.324 | G38: =G28 -> 26.71 | H38: =H33 -> 522.8 | I38: =POWER(J38,2.4) -> 0 | J38: 0 | K38: 0 | L38: B
C40: CIE Yxy | D40: CIE-XYZ | F40: 逆矩阵 | I40: gamma校正前 | J40: gamma校正 | K40: RGB
B41: x | C41: 0.3127 | D41: =C41*D42/C42 -> 323.1350556 | F41: =MINVERSE(F36:H38) -> 0.01026842181 | G41: -0.005080123824 | H41: -0.001596058884 | I41: =F41*D41+G41*D42+H41*D43 -> 1.000000037 | J41: =I41^(1/2.2) -> 1.000000017 | K41: =255*J41 -> 255.0000043
B42: y | C42: 0.329 | D42: =C43 -> 339.979 | F42: -0.002737243066 | G42: 0.005131567749 | H42: 0.0002324009843 | I42: =F42*D41+G42*D42+H42*D43 -> 0.9461741181 | J42: =I42^(1/2.2) -> 0.9751642162 | K42: =255*J42 -> 248.6668751
A43: 最大亮度 | B43: Y:100% | C43: 339.979 | D43: =D41/C41-D41-D42 -> 370.256765 | F43: 7.455915872e-05 | G43: -0.0002298734564 | H43: 0.001911051778 | I43: =F43*D41+G43*D42+H43*D43 -> 0.6535203792 | J43: 0.8241891245 | K43: =255*J43 -> 210.1682268
B44: 0.9 | C44: =$C$43*0.9^2.2 -> 269.6408037
B45: 0.8 | C45: =$C$43*0.8^2.2 -> 208.0894506
B46: 0.7 | C46: =$C$43*0.7^2.2 -> 155.1199943
B47: 0.6 | C47: =$C$43*0.6^2.2 -> 110.5057415
B48: 0.5 | C48: =$C$43*0.5^2.2 -> 73.99222749
B49: 0.4 | C49: =$C$43*0.4^2.2 -> 45.2880971
B50: 0.3 | C50: =$C$43*0.3^2.2 -> 24.05020887
B51: 0.2 | C51: =$C$43*0.2^2.2 -> 9.856394611
B52: 0.1 | C52: =$C$43*0.1^2.2 -> 2.14512247
